[Event "Allsvenskan Div II 5 2023/2024: SS Manhem III - Lidkopings SS"]
[Site "Goteborgs schackcentrum, Vegatan 20, Gothenburg, Sweden"]
[Date "2023.10.22"]
[Round "1.8"]
[White "Lundkvist, Jan"]
[Black "Jonsson, Mose"]
[Result "0-1"]
[TimeControl "90 minutes for 40 moves + 30 minutes for the rest of the game + 30 seconds per move from move one."]
[WhiteFideId "1745476"]
[BlackFideId "1756885"]
[WhiteElo "1419"]
[BlackElo "1819"]

1. d4 {[%clk 01:30:55]} {[%emt 00:00:04]} d5 {[%clk 01:30:53]} {[%emt
00:00:08]} 2. Bf4 {[%clk 01:31:17]} {[%emt 00:00:08]} Nf6 {[%clk 01:30:56]}
{[%emt 00:00:27]} 3. e3 {[%clk 01:30:40]} {[%emt 00:01:06]} Bf5 {[%clk
01:30:45]} {[%emt 00:00:41]} 4. c4 {[%clk 01:29:30]} {[%emt 00:01:41]} c6
{[%clk 01:29:21]} {[%emt 00:01:54]} 5. Nd2 {[%clk 01:26:22]} {[%emt 00:03:37]}
e6 {[%clk 01:27:47]} {[%emt 00:02:04]} 6. Ngf3 {[%clk 01:25:28]} {[%emt
00:01:25]} Nbd7 {[%clk 01:24:15]} {[%emt 00:04:02]} 7. Be2 {[%clk 01:18:35]}
{[%emt 00:07:23]} Be7 {[%clk 01:15:21]} {[%emt 00:09:56]} 8. h3 {[%clk
01:18:42]} {[%emt 00:00:50]} Ne4 {[%clk 01:14:06]} {[%emt 00:01:46]} 9. O-O
{[%clk 01:15:58]} {[%emt 00:03:14]} Ndf6 {[%clk 01:10:45]} {[%emt 00:03:50]} 10.
Qb3 {[%clk 01:00:41]} {[%emt 00:16:21]} Qb6 {[%clk 01:10:32]} {[%emt 00:01:10]}
11. Qxb6 {[%clk 00:52:10]} {[%emt 00:09:00]} axb6 {[%clk 01:10:55]} {[%emt
00:00:08]} 12. Bc7 {[%clk 00:42:32]} {[%emt 00:10:07]} Bd8 {[%clk 01:06:10]}
{[%emt 00:05:16]} 13. Bxd8 {[%clk 00:39:07]} {[%emt 00:03:55]} Kxd8 {[%clk
01:02:55]} {[%emt 00:03:44]} 14. Nxe4 {[%clk 00:34:03]} {[%emt 00:05:34]} Bxe4
{[%clk 00:59:14]} {[%emt 00:04:10]} 15. Nd2 {[%clk 00:32:28]} {[%emt 00:02:06]}
Bg6 {[%clk 00:49:56]} {[%emt 00:09:48]} 16. Rfc1 {[%clk 00:30:54]} {[%emt
00:02:04]} Kc7 {[%clk 00:45:38]} {[%emt 00:04:49]} 17. Kf1 {[%clk 00:29:50]}
{[%emt 00:01:33]} Ra7 {[%clk 00:37:10]} {[%emt 00:08:58]} 18. a3 {[%clk
00:28:53]} {[%emt 00:01:28]} Rc8 {[%clk 00:34:06]} {[%emt 00:03:33]} 19. f3
{[%clk 00:25:52]} {[%emt 00:03:31]} dxc4 {[%clk 00:31:21]} {[%emt 00:03:15]} 20.
Nxc4 {[%clk 00:24:20]} {[%emt 00:02:02]} Nd5 {[%clk 00:28:07]} {[%emt
00:03:45]} 21. Kf2 {[%clk 00:24:09]} {[%emt 00:00:40]} Raa8 {[%clk 00:25:00]}
{[%emt 00:03:37]} 22. g3 {[%clk 00:23:58]} {[%emt 00:00:42]} b5 {[%clk
00:24:02]} {[%emt 00:01:28]} 23. Ne5 {[%clk 00:23:46]} {[%emt 00:00:41]} Kd6
{[%clk 00:24:31]} {[%emt 00:00:02]} 24. e4 {[%clk 00:20:02]} {[%emt 00:04:13]}
Nb6 {[%clk 00:22:55]} {[%emt 00:02:06]} 25. Ke3 {[%clk 00:19:54]} {[%emt
00:00:38]} f6 {[%clk 00:21:08]} {[%emt 00:02:18]} 26. Nxg6 {[%clk 00:18:50]}
{[%emt 00:01:34]} hxg6 {[%clk 00:21:31]} {[%emt 00:00:07]} 27. Bd3 {[%clk
00:18:36]} {[%emt 00:00:43]} g5 {[%clk 00:19:52]} {[%emt 00:02:10]} 28. f4
{[%clk 00:18:12]} {[%emt 00:00:53]} Rh8 {[%clk 00:19:13]} {[%emt 00:01:09]} 29.
Bf1 {[%clk 00:15:02]} {[%emt 00:03:40]} gxf4+ {[%clk 00:16:41]} {[%emt
00:03:03]} 30. Kxf4 {[%clk 00:14:15]} {[%emt 00:01:16]} Ra4 {[%clk 00:15:08]}
{[%emt 00:02:04]} 31. b4 {[%clk 00:13:04]} {[%emt 00:01:41]} g5+ {[%clk
00:14:17]} {[%emt 00:01:20]} 32. Kf3 {[%clk 00:13:24]} {[%emt 00:00:10]} Rha8
{[%clk 00:10:16]} {[%emt 00:04:31]} 33. Rc3 {[%clk 00:13:08]} {[%emt 00:00:48]}
f5 {[%clk 00:08:13]} {[%emt 00:02:32]} 34. Be2 {[%clk 00:12:00]} {[%emt
00:01:37]} fxe4+ {[%clk 00:07:52]} {[%emt 00:00:51]} 35. Kxe4 {[%clk 00:11:54]}
{[%emt 00:00:36]} Nd5 {[%clk 00:07:51]} {[%emt 00:00:32]} 36. Rf3 {[%clk
00:11:15]} {[%emt 00:01:08]} Nxb4 {[%clk 00:07:18]} {[%emt 00:01:03]} 37. Bd1
{[%clk 00:11:25]} {[%emt 00:00:20]} R4a5 {[%clk 00:07:07]} {[%emt 00:00:41]} 38.
h4 {[%clk 00:11:20]} {[%emt 00:00:35]} gxh4 {[%clk 00:06:21]} {[%emt 00:01:16]}
39. gxh4 {[%clk 00:11:48]} {[%emt 00:00:02]} Rh8 {[%clk 00:02:58]} {[%emt
00:03:53]} 40. Rh3 {[%clk 00:11:46]} {[%emt 00:00:33]} Nd5 {[%clk 00:01:38]}
{[%emt 00:01:50]} 41. h5 {[%clk 00:05:51]} {[%emt 00:06:24]} b4 {[%clk
00:23:40]} {[%emt 00:08:29]} 42. Bb3 {[%clk 00:34:17]} {[%emt 00:02:03]} Nf6+
{[%clk 00:20:49]} {[%emt 00:03:21]} 43. Ke3 {[%clk 00:33:02]} {[%emt 00:01:44]}
Rxa3 {[%clk 00:18:09]} {[%emt 00:03:11]} 44. Rb1 {[%clk 00:32:30]} {[%emt
00:01:02]} Rxh5 {[%clk 00:17:08]} {[%emt 00:01:31]} 45. Rg3 {[%clk 00:30:35]}
{[%emt 00:02:25]} Nd5+ {[%clk 00:12:24]} {[%emt 00:05:14]} 46. Kf3 {[%clk
00:29:50]} {[%emt 00:01:14]} Rf5+ {[%clk 00:09:30]} {[%emt 00:03:25]} 47. Kg2
{[%clk 00:29:58]} {[%emt 00:00:21]} Nf4+ {[%clk 00:09:32]} {[%emt 00:00:29]} 48.
Kf2 {[%clk 00:28:55]} {[%emt 00:01:33]} Nd5+ {[%clk 00:07:46]} {[%emt
00:02:17]} 49. Kg2 {[%clk 00:28:54]} {[%emt 00:00:31]} Rf4 {[%clk 00:07:05]}
{[%emt 00:01:10]} 50. Rd3 {[%clk 00:28:53]} {[%emt 00:00:31]} Nc3 {[%clk
00:05:21]} {[%emt 00:02:14]} 51. Rb2 {[%clk 00:29:10]} {[%emt 00:00:13]} Nb5
{[%clk 00:05:08]} {[%emt 00:00:44]} 52. Re2 {[%clk 00:26:42]} {[%emt 00:02:57]}
Nxd4 {[%clk 00:03:23]} {[%emt 00:02:16]} 53. Rxe6+ {[%clk 00:26:37]} {[%emt
00:00:35]} Kd7 {[%clk 00:02:10]} {[%emt 00:01:42]} 54. Ree3 {[%clk 00:26:34]}
{[%emt 00:00:33]} Rxb3 {[%clk 00:02:07]} {[%emt 00:00:33]} 0-1